[Event "***Titled Tuesday 3|2 Blitz"]
[Site "Chess.com"]
[Date "2017.02.07"]
[Round "3"]
[White "wnstop"]
[Black "Dlugy"]
[Result "1-0"]
[WhiteElo "2421"]
[BlackElo "2674"]
[TimeControl "180+2"]
[EndTime "13:40:56 PST"]
[Termination "wnstop won by resignation"]

1. e4 {[%clk 0:03:02]} 1... d5 {[%clk 0:03:00.8]} 2. exd5 {[%clk 0:03:00.8]}
2... Qxd5 {[%clk 0:03:02.5]} 3. Nc3 {[%clk 0:03:01.9]} 3... Qd6 {[%clk 0:03:04]}
4. d4 {[%clk 0:03:02.5]} 4... c6 {[%clk 0:03:05.4]} 5. Ne4 {[%clk 0:02:56.6]}
5... Qe6 {[%clk 0:03:05.4]} 6. Qe2 {[%clk 0:02:54.5]} 6... Nf6 {[%clk
0:03:06.9]} 7. Nxf6+ {[%clk 0:02:52.4]} 7... exf6 {[%clk 0:03:06.8]} 8. Nf3
{[%clk 0:02:51.3]} 8... Bd6 {[%clk 0:03:07.4]} 9. Qxe6+ {[%clk 0:02:48.8]} 9...
Bxe6 {[%clk 0:03:07.7]} 10. Be2 {[%clk 0:02:50.3]} 10... O-O {[%clk 0:03:08.7]}
11. Be3 {[%clk 0:02:43.6]} 11... Re8 {[%clk 0:03:10.6]} 12. O-O-O {[%clk
0:02:43.2]} 12... Nd7 {[%clk 0:03:04.7]} 13. a3 {[%clk 0:02:33.5]} 13... Nb6
{[%clk 0:02:46.8]} 14. Kb1 {[%clk 0:02:30.3]} 14... Nd5 {[%clk 0:02:34.3]} 15.
Bc1 {[%clk 0:02:29.7]} 15... Bg4 {[%clk 0:02:31]} 16. Rhe1 {[%clk 0:02:28.2]}
16... Nf4 {[%clk 0:02:31.6]} 17. Bxf4 {[%clk 0:02:28.1]} 17... Bxf4 {[%clk
0:02:32.7]} 18. g3 {[%clk 0:02:22.5]} 18... Bd6 {[%clk 0:02:33.2]} 19. Ng1
{[%clk 0:02:19.6]} 19... Bf5 {[%clk 0:02:30.5]} 20. Bf3 {[%clk 0:02:14]} 20...
g6 {[%clk 0:02:19.7]} 21. Kc1 {[%clk 0:02:14.9]} 21... h5 {[%clk 0:02:20.2]} 22.
h4 {[%clk 0:01:57.8]} 22... Rad8 {[%clk 0:02:18.1]} 23. Rxe8+ {[%clk 0:01:50.7]}
23... Rxe8 {[%clk 0:02:19]} 24. Kd2 {[%clk 0:01:51.8]} 24... Rd8 {[%clk
0:02:19.3]} 25. c3 {[%clk 0:01:50.5]} 25... Be6 {[%clk 0:01:56.4]} 26. Ne2
{[%clk 0:01:42.1]} 26... f5 {[%clk 0:01:57.3]} 27. Nf4 {[%clk 0:01:41.3]} 27...
Bb3 {[%clk 0:01:58.2]} 28. Re1 {[%clk 0:01:40.9]} 28... c5 {[%clk 0:01:35]} 29.
Bxb7 {[%clk 0:01:30.9]} 29... cxd4 {[%clk 0:01:35.9]} 30. cxd4 {[%clk
0:01:31.6]} 30... Bxf4+ {[%clk 0:01:36.5]} 31. gxf4 {[%clk 0:01:33.5]} 31...
Rxd4+ {[%clk 0:01:38]} 32. Kc3 {[%clk 0:01:35]} 32... Rd7 {[%clk 0:01:35.7]} 33.
Re8+ {[%clk 0:01:33.5]} 33... Kg7 {[%clk 0:01:35.9]} 34. Bc8 {[%clk 0:01:34.7]}
34... Rd6 {[%clk 0:01:19.9]} 35. Kxb3 {[%clk 0:01:33.9]} 35... Rd4 {[%clk
0:01:21.8]} 36. Re7 {[%clk 0:01:33.8]} 36... Rxf4 {[%clk 0:01:23.7]} 37. Rxa7
{[%clk 0:01:34.4]} 37... Rxf2 {[%clk 0:01:24]} 38. Be6 {[%clk 0:01:33.9]} 38...
Kf6 {[%clk 0:01:24.3]} 39. Bxf7 {[%clk 0:01:34.5]} 39... Rf3+ {[%clk 0:01:22.5]}
40. Ka2 {[%clk 0:01:34.5]} 40... Rf4 {[%clk 0:01:23]} 41. Be8 {[%clk 0:01:35.5]}
41... Rxh4 {[%clk 0:01:24.2]} 42. Ra6+ {[%clk 0:01:36]} 42... Ke5 {[%clk
0:01:25.4]} 43. Bxg6 {[%clk 0:01:36.2]} 43... f4 {[%clk 0:01:26.6]} 44. Ra5+
{[%clk 0:01:37]} 44... Kd4 {[%clk 0:01:27.7]} 45. Rxh5 {[%clk 0:01:34.6]} 45...
Rg4 {[%clk 0:01:28.7]} 46. Be8 {[%clk 0:01:33.3]} 46... f3 {[%clk 0:01:29.9]}
47. Rf5 {[%clk 0:01:33.7]} 47... Ke3 {[%clk 0:01:30.1]} 48. Rxf3+ {[%clk
0:01:33.5]} 48... Kxf3 {[%clk 0:01:24.3]} 49. Bh5 {[%clk 0:01:34.2]} 1-0

[Event "***Titled Tuesday 3|2 Blitz"]
[Site "Chess.com"]
[Date "2017.02.07"]
[Round "3"]
[White "Pierrebl"]
[Black "platy3"]
[Result "0-1"]
[WhiteElo "2401"]
[BlackElo "2591"]
[TimeControl "180+2"]
[EndTime "13:40:56 PST"]
[Termination "platy3 won on time"]

1. e4 {[%clk 0:02:59.8]} 1... c5 {[%clk 0:02:58.2]} 2. Nf3 {[%clk 0:02:59.4]}
2... Nc6 {[%clk 0:02:59.3]} 3. d4 {[%clk 0:02:57]} 3... cxd4 {[%clk 0:03:01.2]}
4. Nxd4 {[%clk 0:02:58.9]} 4... Nf6 {[%clk 0:03:02.9]} 5. Nc3 {[%clk 0:02:59.8]}
5... e5 {[%clk 0:03:04.6]} 6. Ndb5 {[%clk 0:03:00.9]} 6... d6 {[%clk 0:03:06.1]}
7. Bg5 {[%clk 0:03:02.4]} 7... a6 {[%clk 0:03:07.7]} 8. Na3 {[%clk 0:03:03.8]}
8... b5 {[%clk 0:03:09.3]} 9. Bxf6 {[%clk 0:03:04.1]} 9... gxf6 {[%clk
0:03:10.3]} 10. Nd5 {[%clk 0:03:05.3]} 10... Bg7 {[%clk 0:03:11.7]} 11. Bd3
{[%clk 0:03:02.1]} 11... Ne7 {[%clk 0:03:12.8]} 12. Nxe7 {[%clk 0:03:02.7]}
12... Qxe7 {[%clk 0:03:13.5]} 13. c3 {[%clk 0:03:04.6]} 13... f5 {[%clk
0:03:08.9]} 14. Nc2 {[%clk 0:03:05.4]} 14... Bb7 {[%clk 0:02:57.4]} 15. Ne3
{[%clk 0:02:59.8]} 15... fxe4 {[%clk 0:01:53.2]} 16. Nf5 {[%clk 0:02:57.7]}
16... Qf6 {[%clk 0:01:54.4]} 17. Bxe4 {[%clk 0:02:54.1]} 17... d5 {[%clk
0:01:37.6]} 18. Bxd5 {[%clk 0:01:06.7]} 18... Rd8 {[%clk 0:01:33.1]} 19. Qg4
{[%clk 0:00:37]} 19... Bxd5 {[%clk 0:01:05.3]} 20. Qxg7 {[%clk 0:00:19.2]} 20...
Qxf5 {[%clk 0:01:00.5]} 21. Qxh8+ {[%clk 0:00:15.5]} 21... Ke7 {[%clk
0:01:01.8]} 22. Qg7 {[%clk 0:00:16.8]} 22... Bc4 {[%clk 0:00:53.9]} 23. f3
{[%clk 0:00:16.1]} 23... Qf4 {[%clk 0:00:44.3]} 0-1

[Event "***Titled Tuesday 3|2 Blitz"]
[Site "Chess.com"]
[Date "2017.02.07"]
[Round "3"]
[White "Astaneh"]
[Black "Zlatan56"]
[Result "1-0"]
[WhiteElo "2493"]
[BlackElo "2637"]
[TimeControl "180+2"]
[EndTime "13:40:57 PST"]
[Termination "Astaneh won by resignation"]

1. d4 {[%clk 0:02:59]} 1... g6 {[%clk 0:03:01.2]} 2. Nf3 {[%clk 0:02:57.8]} 2...
Bg7 {[%clk 0:03:01.9]} 3. e4 {[%clk 0:02:58.7]} 3... d6 {[%clk 0:03:02.1]} 4. h3
{[%clk 0:02:58.6]} 4... Nf6 {[%clk 0:03:01.4]} 5. Nc3 {[%clk 0:02:59.8]} 5...
O-O {[%clk 0:02:59.5]} 6. Bd3 {[%clk 0:02:59.6]} 6... Nc6 {[%clk 0:02:58.9]} 7.
O-O {[%clk 0:02:57.7]} 7... e5 {[%clk 0:02:58.8]} 8. dxe5 {[%clk 0:02:55.1]}
8... dxe5 {[%clk 0:03:00.7]} 9. b3 {[%clk 0:02:50.9]} 9... Nh5 {[%clk
0:02:54.8]} 10. Ne2 {[%clk 0:02:48.6]} 10... Be6 {[%clk 0:02:49.3]} 11. Ng5
{[%clk 0:02:33.7]} 11... Nf4 {[%clk 0:02:44.5]} 12. Nxf4 {[%clk 0:02:21.1]}
12... exf4 {[%clk 0:02:40.2]} 13. Bxf4 {[%clk 0:02:23]} 13... Bxa1 {[%clk
0:02:36]} 14. Qxa1 {[%clk 0:02:24.9]} 14... Qe7 {[%clk 0:02:35.4]} 15. Be3
{[%clk 0:01:51]} 15... Rad8 {[%clk 0:02:25.2]} 16. f4 {[%clk 0:01:51.2]} 16...
Nb4 {[%clk 0:02:18.8]} 17. Qc3 {[%clk 0:01:44.9]} 17... Nxd3 {[%clk 0:02:14.5]}
18. cxd3 {[%clk 0:01:45.8]} 18... b6 {[%clk 0:02:15.1]} 19. f5 {[%clk
0:01:29.7]} 19... Bxf5 {[%clk 0:02:08.8]} 20. Nf3 {[%clk 0:01:12.1]} 20... Bc8
{[%clk 0:01:33.5]} 21. Bh6 {[%clk 0:01:10.4]} 21... f6 {[%clk 0:01:34.4]} 22.
Bxf8 {[%clk 0:01:08.3]} 22... Rxf8 {[%clk 0:01:34.9]} 23. b4 {[%clk 0:01:02.1]}
23... f5 {[%clk 0:01:34.9]} 24. exf5 {[%clk 0:00:52.4]} 24... Bxf5 {[%clk
0:01:24.3]} 25. Re1 {[%clk 0:00:47.4]} 25... Qd6 {[%clk 0:01:25]} 26. Qc4+
{[%clk 0:00:32]} 26... Kg7 {[%clk 0:01:24.8]} 27. Nd4 {[%clk 0:00:20]} 27... Qg3
{[%clk 0:01:09.8]} 28. Re7+ {[%clk 0:00:14.4]} 28... Kh6 {[%clk 0:01:09.5]} 29.
Qc1+ {[%clk 0:00:14.2]} 29... g5 {[%clk 0:01:09.6]} 30. Nxf5+ {[%clk 0:00:14]}
30... Rxf5 {[%clk 0:01:08.8]} 31. Qc6+ {[%clk 0:00:15.6]} 31... Qd6 {[%clk
0:01:09.6]} 32. Re6+ {[%clk 0:00:16.9]} 1-0

[Event "***Titled Tuesday 3|2 Blitz"]
[Site "Chess.com"]
[Date "2017.02.07"]
[Round "3"]
[White "Genghis_K"]
[Black "tigra"]
[Result "0-1"]
[WhiteElo "2684"]
[BlackElo "2565"]
[TimeControl "180+2"]
[EndTime "13:41:30 PST"]
[Termination "tigra won by resignation"]

1. e4 {[%clk 0:03:02]} 1... c5 {[%clk 0:00:18.8]} 2. Nf3 {[%clk 0:03:01.5]} 2...
d6 {[%clk 0:00:18.3]} 3. d4 {[%clk 0:03:01.8]} 3... cxd4 {[%clk 0:00:20.2]} 4.
Nxd4 {[%clk 0:03:02.8]} 4... Nf6 {[%clk 0:00:22.1]} 5. Nc3 {[%clk 0:03:04.2]}
5... Nc6 {[%clk 0:00:22.8]} 6. Bg5 {[%clk 0:03:04.7]} 6... e6 {[%clk 0:00:23.6]}
7. Qd2 {[%clk 0:03:06.1]} 7... Nxd4 {[%clk 0:00:24.5]} 8. Qxd4 {[%clk
0:03:07.1]} 8... Be7 {[%clk 0:00:26.1]} 9. O-O-O {[%clk 0:03:07.5]} 9... O-O
{[%clk 0:00:26.8]} 10. Be2 {[%clk 0:03:07.5]} 10... Bd7 {[%clk 0:00:26.7]} 11.
f4 {[%clk 0:03:07.7]} 11... Qa5 {[%clk 0:00:26]} 12. e5 {[%clk 0:03:01.2]} 12...
dxe5 {[%clk 0:00:26.5]} 13. Qxe5 {[%clk 0:03:02.8]} 13... Qb6 {[%clk 0:00:26.8]}
14. f5 {[%clk 0:02:50.7]} 14... Rac8 {[%clk 0:00:27.5]} 15. Be3 {[%clk
0:02:48.2]} 15... Bc5 {[%clk 0:00:25.4]} 16. Bxc5 {[%clk 0:02:26.6]} 16... Rxc5
{[%clk 0:00:27.3]} 17. Qd6 {[%clk 0:02:28.2]} 17... Qxd6 {[%clk 0:00:26.1]} 18.
Rxd6 {[%clk 0:02:29.8]} 18... Rxf5 {[%clk 0:00:27.6]} 19. g4 {[%clk 0:02:31.4]}
19... Re5 {[%clk 0:00:26.6]} 20. Bf3 {[%clk 0:02:30.2]} 20... b5 {[%clk
0:00:22.4]} 21. h4 {[%clk 0:02:27.1]} 21... b4 {[%clk 0:00:22.8]} 22. Nd1 {[%clk
0:02:21.1]} 22... h6 {[%clk 0:00:17.3]} 23. Nf2 {[%clk 0:02:21.1]} 23... Bb5
{[%clk 0:00:17.8]} 24. Rg1 {[%clk 0:02:16]} 24... Re3 {[%clk 0:00:18.5]} 25. Bd1
{[%clk 0:02:15.3]} 25... Rc8 {[%clk 0:00:17.6]} 26. g5 {[%clk 0:02:12]} 26...
hxg5 {[%clk 0:00:18.4]} 27. hxg5 {[%clk 0:02:13.9]} 27... Nd5 {[%clk 0:00:19]}
28. g6 {[%clk 0:02:14.9]} 28... f5 {[%clk 0:00:19.8]} 29. Rh1 {[%clk 0:02:07.9]}
29... Nf4 {[%clk 0:00:20.4]} 30. Rd4 {[%clk 0:01:59.1]} 30... Nxg6 {[%clk
0:00:18.5]} 31. Rxb4 {[%clk 0:01:57.3]} 31... Be8 {[%clk 0:00:19.4]} 32. Nh3
{[%clk 0:01:51.6]} 32... Rg3 {[%clk 0:00:19.8]} 33. c3 {[%clk 0:01:49.3]} 33...
a5 {[%clk 0:00:20.2]} 34. Rb6 {[%clk 0:01:49.4]} 34... Bf7 {[%clk 0:00:18.3]}
35. Bh5 {[%clk 0:01:50.8]} 35... Ne5 {[%clk 0:00:18.5]} 36. Bxf7+ {[%clk
0:01:47.5]} 36... Kxf7 {[%clk 0:00:19.4]} 37. Kb1 {[%clk 0:01:46.8]} 37... Nd3
{[%clk 0:00:20]} 38. Rb7+ {[%clk 0:01:39.3]} 38... Kf6 {[%clk 0:00:21]} 39. Ng1
{[%clk 0:01:37.3]} 39... Nf2 {[%clk 0:00:20.8]} 40. Rh4 {[%clk 0:01:14.8]} 40...
Rxg1+ {[%clk 0:00:21.3]} 41. Kc2 {[%clk 0:01:16.5]} 41... Rg2 {[%clk 0:00:21.9]}
42. Ra4 {[%clk 0:01:17.4]} 42... Ne4+ {[%clk 0:00:22.5]} 43. Kc1 {[%clk
0:01:17.5]} 43... Rh8 {[%clk 0:00:22.5]} 0-1

[Event "***Titled Tuesday 3|2 Blitz"]
[Site "Chess.com"]
[Date "2017.02.07"]
[Round "3"]
[White "salomez"]
[Black "NoWuss2"]
[Result "0-1"]
[WhiteElo "2146"]
[BlackElo "2057"]
[TimeControl "180+2"]
[EndTime "13:41:40 PST"]
[Termination "NoWuss2 won by checkmate"]

1. e4 {[%clk 0:03:02]} 1... Nc6 {[%clk 0:03:00.6]} 2. d4 {[%clk 0:03:00.6]} 2...
e5 {[%clk 0:03:01.1]} 3. d5 {[%clk 0:03:00.4]} 3... Nce7 {[%clk 0:03:01.6]} 4.
Nf3 {[%clk 0:03:01.8]} 4... Ng6 {[%clk 0:03:02.7]} 5. c4 {[%clk 0:02:57.6]} 5...
Bc5 {[%clk 0:03:02.1]} 6. Nc3 {[%clk 0:02:58.5]} 6... Nf6 {[%clk 0:02:57.2]} 7.
Be2 {[%clk 0:02:58.9]} 7... O-O {[%clk 0:02:54.6]} 8. O-O {[%clk 0:02:57.8]}
8... d6 {[%clk 0:02:54.6]} 9. a3 {[%clk 0:02:58.2]} 9... a5 {[%clk 0:02:55.3]}
10. Bg5 {[%clk 0:02:54.6]} 10... h6 {[%clk 0:02:55.3]} 11. Bd2 {[%clk 0:02:55]}
11... Bd7 {[%clk 0:02:53.8]} 12. Rb1 {[%clk 0:02:54.2]} 12... a4 {[%clk
0:02:55.1]} 13. Qc2 {[%clk 0:02:50.2]} 13... Re8 {[%clk 0:02:50.2]} 14. Bd3
{[%clk 0:02:48.2]} 14... Nh5 {[%clk 0:02:45.5]} 15. g3 {[%clk 0:02:47.5]} 15...
Bh3 {[%clk 0:02:44.8]} 16. Rfe1 {[%clk 0:02:45.9]} 16... Qd7 {[%clk 0:02:20.3]}
17. Qd1 {[%clk 0:02:45.8]} 17... Nhf4 {[%clk 0:02:16]} 18. Bc2 {[%clk
0:02:42.6]} 18... Qg4 {[%clk 0:01:02.4]} 19. Bxa4 {[%clk 0:02:34.7]} 19... Bg2
{[%clk 0:01:02.5]} 20. Nxe5 {[%clk 0:02:22.9]} 20... Qh3 {[%clk 0:00:11.9]} 21.
Bxe8 {[%clk 0:02:09.1]} 21... Nxe5 {[%clk 0:00:11.1]} 22. Bxf7+ {[%clk
0:00:44.3]} 22... Kxf7 {[%clk 0:00:10.6]} 23. Re3 {[%clk 0:00:30.3]} 23... Bf3
{[%clk 0:00:10.8]} 24. Qf1 {[%clk 0:00:19.4]} 24... Bg2 {[%clk 0:00:10.9]} 25.
Qd1 {[%clk 0:00:12.6]} 25... Ng4 {[%clk 0:00:11.1]} 26. Qxg4 {[%clk 0:00:08.2]}
26... Qxg4 {[%clk 0:00:12.1]} 27. gxf4 {[%clk 0:00:08]} 27... Bf3+ {[%clk
0:00:11.5]} 28. Kf1 {[%clk 0:00:08.3]} 28... Qg2+ {[%clk 0:00:12.1]} 29. Ke1
{[%clk 0:00:09.5]} 29... Qg1# {[%clk 0:00:12.6]} 0-1

[Event "***Titled Tuesday 3|2 Blitz"]
[Site "Chess.com"]
[Date "2017.02.07"]
[Round "3"]
[White "Vegan4future"]
[Black "IMJonathanCarlstedt"]
[Result "1-0"]
[WhiteElo "2433"]
[BlackElo "2424"]
[TimeControl "180+2"]
[EndTime "13:41:43 PST"]
[Termination "Vegan4future won by resignation"]

1. Nc3 {[%clk 0:02:54.8]} 1... g6 {[%clk 0:02:56]} 2. d4 {[%clk 0:02:50.3]} 2...
Bg7 {[%clk 0:02:55.6]} 3. e4 {[%clk 0:02:51.8]} 3... a6 {[%clk 0:02:57]} 4. a4
{[%clk 0:02:52.6]} 4... d6 {[%clk 0:02:57.5]} 5. Be3 {[%clk 0:02:54.2]} 5... Nd7
{[%clk 0:02:58.5]} 6. Qd2 {[%clk 0:02:54.6]} 6... c5 {[%clk 0:02:59.2]} 7. Nge2
{[%clk 0:02:53]} 7... cxd4 {[%clk 0:02:46.4]} 8. Bxd4 {[%clk 0:02:53.7]} 8...
Ngf6 {[%clk 0:02:47.3]} 9. h3 {[%clk 0:02:53.8]} 9... O-O {[%clk 0:02:47.4]} 10.
g4 {[%clk 0:02:54.5]} 10... b6 {[%clk 0:02:27]} 11. Bg2 {[%clk 0:02:55.3]} 11...
Bb7 {[%clk 0:02:26.1]} 12. O-O {[%clk 0:02:56]} 12... Ne8 {[%clk 0:02:15.5]} 13.
Ng3 {[%clk 0:02:47.8]} 13... Qc7 {[%clk 0:02:13.1]} 14. Rac1 {[%clk 0:02:31.7]}
14... Ne5 {[%clk 0:02:01.8]} 15. b3 {[%clk 0:02:29.2]} 15... Rc8 {[%clk
0:01:56.4]} 16. Nd5 {[%clk 0:02:29.1]} 16... Bxd5 {[%clk 0:01:52.4]} 17. exd5
{[%clk 0:02:31]} 17... Nf6 {[%clk 0:01:53.2]} 18. c4 {[%clk 0:02:30.6]} 18... a5
{[%clk 0:01:50.9]} 19. Qe3 {[%clk 0:02:26.7]} 19... Rfe8 {[%clk 0:01:50.3]} 20.
Bxb6 {[%clk 0:02:26.1]} 20... Qb7 {[%clk 0:01:14.1]} 21. Bxa5 {[%clk 0:02:26.9]}
21... Ned7 {[%clk 0:01:14.6]} 22. g5 {[%clk 0:02:23]} 22... Nh5 {[%clk
0:01:12.5]} 23. Nxh5 {[%clk 0:02:24.2]} 23... gxh5 {[%clk 0:01:13.6]} 24. Rb1
{[%clk 0:02:13.6]} 24... Nc5 {[%clk 0:01:13.1]} 25. Bc3 {[%clk 0:02:11.5]} 25...
Bxc3 {[%clk 0:01:06.3]} 26. Qxc3 {[%clk 0:02:13.4]} 26... Rb8 {[%clk 0:01:06.9]}
27. Bf3 {[%clk 0:02:06.4]} 27... Qb4 {[%clk 0:01:05.3]} 28. Qe3 {[%clk
0:01:58.3]} 28... e6 {[%clk 0:01:05.5]} 29. Qf4 {[%clk 0:01:51]} 29... exd5
{[%clk 0:00:54.6]} 30. Bxd5 {[%clk 0:01:52.9]} 30... Re7 {[%clk 0:00:50.9]} 31.
Qxd6 {[%clk 0:01:52.8]} 31... Rbe8 {[%clk 0:00:47.7]} 32. g6 {[%clk 0:01:51.8]}
32... hxg6 {[%clk 0:00:44.1]} 33. Qxg6+ {[%clk 0:01:53.7]} 33... Kf8 {[%clk
0:00:44.8]} 34. Qxh5 {[%clk 0:01:50.6]} 34... Qc3 {[%clk 0:00:40.2]} 35. Qh6+
{[%clk 0:01:46]} 35... Kg8 {[%clk 0:00:33.9]} 36. b4 {[%clk 0:01:39.4]} 36...
Ne6 {[%clk 0:00:34]} 37. Rfc1 {[%clk 0:01:33.7]} 37... Qd4 {[%clk 0:00:25.1]}
38. Rd1 {[%clk 0:01:34.7]} 38... Qc3 {[%clk 0:00:26]} 39. Rdc1 {[%clk
0:01:33.2]} 39... Qd4 {[%clk 0:00:26.6]} 40. Rb3 {[%clk 0:01:34.2]} 40... Ng7
{[%clk 0:00:22.1]} 41. Rg3 {[%clk 0:01:23.1]} 41... Re1+ {[%clk 0:00:22.7]} 42.
Rxe1 {[%clk 0:01:24.8]} 42... Rxe1+ {[%clk 0:00:23.4]} 43. Kg2 {[%clk
0:01:26.5]} 43... Re2 {[%clk 0:00:23.5]} 44. Qxg7+ {[%clk 0:01:24.2]} 44... Qxg7
{[%clk 0:00:23.8]} 45. Rxg7+ {[%clk 0:01:26.1]} 45... Kxg7 {[%clk 0:00:25.7]}
46. a5 {[%clk 0:01:27.8]} 46... Ra2 {[%clk 0:00:25.4]} 47. Bb7 {[%clk
0:01:21.7]} 47... Ra4 {[%clk 0:00:25.7]} 48. a6 {[%clk 0:01:20]} 48... Rxb4
{[%clk 0:00:26.5]} 49. a7 {[%clk 0:01:21.3]} 49... Ra4 {[%clk 0:00:27.9]} 50.
a8=Q {[%clk 0:01:22.7]} 1-0

[Event "***Titled Tuesday 3|2 Blitz"]
[Site "Chess.com"]
[Date "2017.02.07"]
[Round "3"]
[White "stefanodinn"]
[Black "Maitreia"]
[Result "0-1"]
[WhiteElo "2227"]
[BlackElo "2479"]
[TimeControl "180+2"]
[EndTime "13:41:44 PST"]
[Termination "Maitreia won by resignation"]

1. e4 {[%clk 0:03:00.3]} 1... c5 {[%clk 0:02:58.5]} 2. Nf3 {[%clk 0:02:59.9]}
2... g6 {[%clk 0:02:59.2]} 3. d4 {[%clk 0:02:49.5]} 3... cxd4 {[%clk 0:03:01.1]}
4. Nxd4 {[%clk 0:02:50.6]} 4... Bg7 {[%clk 0:03:02.1]} 5. c4 {[%clk 0:02:51.3]}
5... Nc6 {[%clk 0:03:02.3]} 6. Be3 {[%clk 0:02:50]} 6... Nf6 {[%clk 0:03:00.6]}
7. Nc3 {[%clk 0:02:49.1]} 7... Nxd4 {[%clk 0:03:01.9]} 8. Bxd4 {[%clk
0:02:48.9]} 8... d6 {[%clk 0:03:03.8]} 9. Be2 {[%clk 0:02:47.7]} 9... O-O {[%clk
0:03:04.9]} 10. O-O {[%clk 0:02:48.2]} 10... Bd7 {[%clk 0:03:06.4]} 11. Qd2
{[%clk 0:02:42.7]} 11... Bc6 {[%clk 0:03:07.4]} 12. f3 {[%clk 0:02:43.7]} 12...
a5 {[%clk 0:03:08.3]} 13. b3 {[%clk 0:02:44.8]} 13... Nd7 {[%clk 0:03:08.5]} 14.
Be3 {[%clk 0:02:45.9]} 14... Nc5 {[%clk 0:03:09.5]} 15. Rab1 {[%clk 0:02:46.8]}
15... Be5 {[%clk 0:03:08.4]} 16. Rfc1 {[%clk 0:02:16.3]} 16... e6 {[%clk
0:03:09.8]} 17. g3 {[%clk 0:01:49]} 17... h5 {[%clk 0:02:57.5]} 18. Bd1 {[%clk
0:01:30.2]} 18... h4 {[%clk 0:02:55.8]} 19. Bf2 {[%clk 0:01:18.8]} 19... h3
{[%clk 0:02:52.1]} 20. a3 {[%clk 0:01:14.4]} 20... Qf6 {[%clk 0:02:34]} 21. b4
{[%clk 0:01:10.3]} 21... axb4 {[%clk 0:02:35.9]} 22. axb4 {[%clk 0:01:10.8]}
22... Na4 {[%clk 0:02:37.5]} 23. Nxa4 {[%clk 0:01:09.5]} 23... Bxa4 {[%clk
0:02:39.4]} 24. f4 {[%clk 0:01:00.8]} 24... Bxd1 {[%clk 0:02:31.2]} 25. Qxd1
{[%clk 0:00:49.4]} 25... Bxf4 {[%clk 0:01:53.3]} 26. gxf4 {[%clk 0:00:49.6]}
26... Qxf4 {[%clk 0:01:55.2]} 27. Qe2 {[%clk 0:00:41.9]} 27... Ra3 {[%clk
0:01:50.5]} 28. Bg3 {[%clk 0:00:39.4]} 28... Qg5 {[%clk 0:01:42.8]} 29. Kh1
{[%clk 0:00:35.4]} 29... Rfa8 {[%clk 0:01:39.6]} 30. Bxd6 {[%clk 0:00:13.1]}
30... Ra2 {[%clk 0:01:40.9]} 31. Rc2 {[%clk 0:00:12.5]} 31... Ra1 {[%clk
0:01:25.8]} 32. Rb2 {[%clk 0:00:12.4]} 32... R8a2 {[%clk 0:01:21.4]} 33. Qf1
{[%clk 0:00:10.4]} 33... Qe3 {[%clk 0:00:41.9]} 34. Rxa2 {[%clk 0:00:03.5]}
34... Qxe4+ {[%clk 0:00:38.8]} 0-1

[Event "***Titled Tuesday 3|2 Blitz"]
[Site "Chess.com"]
[Date "2017.02.07"]
[Round "3"]
[White "GrigorGrigorov"]
[Black "Konavets"]
[Result "0-1"]
[WhiteElo "2475"]
[BlackElo "2536"]
[TimeControl "180+2"]
[EndTime "13:41:52 PST"]
[Termination "Konavets won by resignation"]

1. d4 {[%clk 0:03:02]} 1... Nf6 {[%clk 0:02:58.6]} 2. c4 {[%clk 0:03:00.7]} 2...
c5 {[%clk 0:02:59.7]} 3. d5 {[%clk 0:03:01.2]} 3... e6 {[%clk 0:03:01.1]} 4. Nc3
{[%clk 0:03:01.2]} 4... exd5 {[%clk 0:03:02.3]} 5. cxd5 {[%clk 0:03:02]} 5... d6
{[%clk 0:03:04.2]} 6. Nf3 {[%clk 0:03:02.9]} 6... a6 {[%clk 0:03:05.4]} 7. a4
{[%clk 0:03:03.2]} 7... Bf5 {[%clk 0:03:06.4]} 8. Bf4 {[%clk 0:02:56.7]} 8...
Be7 {[%clk 0:03:01.7]} 9. h3 {[%clk 0:02:51]} 9... O-O {[%clk 0:03:02.4]} 10.
Nd2 {[%clk 0:02:51.6]} 10... Re8 {[%clk 0:03:03.3]} 11. e3 {[%clk 0:02:52.2]}
11... Nbd7 {[%clk 0:02:59.1]} 12. Be2 {[%clk 0:02:47.6]} 12... Bf8 {[%clk
0:02:37.9]} 13. O-O {[%clk 0:02:45.2]} 13... Ne5 {[%clk 0:02:38.9]} 14. Bg3
{[%clk 0:02:36.5]} 14... h6 {[%clk 0:02:35.8]} 15. e4 {[%clk 0:02:31.7]} 15...
Bh7 {[%clk 0:02:35.6]} 16. f4 {[%clk 0:02:19]} 16... Ned7 {[%clk 0:02:36.1]} 17.
Bf3 {[%clk 0:01:46.5]} 17... Rb8 {[%clk 0:02:37]} 18. Re1 {[%clk 0:01:40.9]}
18... Qc7 {[%clk 0:01:10.9]} 19. a5 {[%clk 0:01:07.6]} 19... b5 {[%clk
0:01:05.3]} 20. axb6 {[%clk 0:01:07.9]} 20... Rxb6 {[%clk 0:01:06.5]} 21. Nc4
{[%clk 0:01:04.7]} 21... Rb4 {[%clk 0:01:07.4]} 22. b3 {[%clk 0:01:05.6]} 22...
Nb6 {[%clk 0:01:01.6]} 23. e5 {[%clk 0:00:41.8]} 23... Nxc4 {[%clk 0:00:49.3]}
24. exf6 {[%clk 0:00:22.7]} 24... Rxe1+ {[%clk 0:00:38.4]} 25. Bxe1 {[%clk
0:00:23.7]} 25... Nb2 {[%clk 0:00:34.6]} 26. Qd2 {[%clk 0:00:19]} 26... Nd3
{[%clk 0:00:33.3]} 27. Rxa6 {[%clk 0:00:17]} 27... Qb7 {[%clk 0:00:27.2]} 28.
Ra3 {[%clk 0:00:15.6]} 28... Rxb3 {[%clk 0:00:28.4]} 29. Rxb3 {[%clk 0:00:15.8]}
29... Qxb3 {[%clk 0:00:30.3]} 30. Bg3 {[%clk 0:00:16.3]} 30... c4 {[%clk
0:00:24.6]} 31. Ne4 {[%clk 0:00:14.1]} 31... Bxe4 {[%clk 0:00:25.1]} 32. Bxe4
{[%clk 0:00:16]} 32... Nc5 {[%clk 0:00:26.7]} 33. Bf5 {[%clk 0:00:16]} 33...
Qxg3 {[%clk 0:00:27.3]} 0-1